Cogmind - Beta 14 @@@ ROGUE MODE // 2024.09.29 @ 18:12:42 Player: x1123581321345589144233 Result: Destroyed by H-61 Shepherd with Heavy Assault Cannon Performance ------------- Evolutions (2) 1000 Regions Visited (4) 800 Robots Destroyed (15) 75 Value Destroyed (214) 214 Prototype IDs (1) 20 Alien Tech Used (0) 0 Bonus (0) 0 TOTAL SCORE: 2109 Bonus ------- None Cogmind --------- Core Integrity 0/550 Matter 300/300 Energy 37/300 System Corruption 0% Temperature Cool (0) Movement Core (100) Ox1 Location -8/Materials Parts ------- > --- POWER (1) -------- (None) > --- PROPULSION (4) --- (None) > --- UTILITY (4) ------ Compact Battery > --- WEAPON (2) ------- Medium Laser Heavy Particle Gun > --- INVENTORY (5) ---- Medium Armor Plating Peak State ------------ > --- POWER ------------ Reinforced Ion Engine > --- PROPULSION ------- Flight Unit Flight Unit Flight Unit > --- UTILITY ---------- ECM Suite Hacking Suite > --- WEAPON ----------- Ripper > --- INVENTORY -------- Light Ion Engine Medium Armor Plating Medium Laser Small Laser Spread Laser [Rating: 13] Favorites ----------- Power Ion Engine Engine Ion Engine Propulsion Flight Unit Leg Carbon-fiber Leg Wheel Wheel Flight Unit Flight Unit Utility ECM Suite Device ECM Suite Storage Compact Battery Hackware Hacking Suite Protection Weapon Shielding Weapon Ripper Energy Gun Small Laser Slashing Weapon Ripper Build | -11 -10 -9 -9 -8 ------- Run | Yrd Mat Mat Min Mat Slots Evolved 4 | . . 2 . 2 Power . | . . . . . Propulsion 2 | . . 1 . 1 Utility 2 | . . 1 . 1 Weapon . | . . . . . Parts Attached 25 | 5 4 1 7 8 Power 5 | 1 . . 2 2 Engine 5 | 1 . . 2 2 Core . | . . . . . Reactor . | . . . . . Propulsion 8 | 2 3 . 2 1 Treads . | . . . . . Leg 1 | . . . . 1 Wheel 2 | 2 . . . . Hover . | . . . . . Flight 5 | . 3 . 2 . Utility 4 | . 1 . 1 2 Device 1 | . . . 1 . Storage 1 | . . . . 1 Processor . | . . . . . Hackware 1 | . . . . 1 Protection 1 | . 1 . . . Artifact . | . . . . . Weapon 8 | 2 . 1 2 3 Energy Gun 7 | 2 . 1 1 3 Energy Cannon . | . . . . . Ballistic Gun . | . . . . . Ballistic Cannon . | . . . . . Launcher . | . . . . . Special Weapon . | . . . . . Impact Weapon . | . . . . . Slashing Weapon 1 | . . . 1 . Piercing Weapon . | . . . . . Special Melee Weapon . | . . . . . Unidentified Prototypes 1 | . . . . 1 Parts Lost 12 | . 1 1 . 10 Power 2 | . . . . 2 Propulsion 6 | . 1 1 . 4 Utility 2 | . . . . 2 Weapon 2 | . . . . 2 Highest Loss Streak 8 | . 1 1 . 8 To Critical Strikes . | . . . . . Average Slot Usage (%) 54 | . 79 41 54 37 Engine 10 | . 14 11 11 6 Wheel 3 | . 15 . . . Flight 17 | . 10 17 25 12 Device 3 | . . . 6 3 Hackware 1 | . . . . 4 Protection 2 | . 10 1 . . Energy Gun 10 | . 27 11 3 4 Slashing Weapon 4 | . . . 7 6 Peak Build Rating 13 | 5 6 6 11 13 Average Rating 7 | 4 5 4 8 8 On Entrance 4 | . 5 5 4 10 Naked Turns . | . . . . . Heaviest Build 15 | 8 9 8 15 15 Greatest Support 20 | 20 20 8 12 15 Greatest Overweight (x) 4 | . 2 1 2 4 Average Overweight (x) . | . . . . . Largest Inventory Capacity 5 | 5 5 5 5 5 Average Capacity 5 | 5 5 5 5 5 Most Carried 5 | 2 4 5 5 5 Average Carried 3 | . 2 4 4 3 Final Capacity 5 | 5 5 5 5 5 Final Carried 5 | 2 4 5 5 1 Class Distribution -------------------- 100% | Mutant Dominant Class ---------------- Mutant | -10/Materials Mutant | -9/Materials Mutant | -9/Mines Mutant | -8/Materials Resources | -11 -10 -9 -9 -8 ----------- Run | Yrd Mat Mat Min Mat Matter Collected 400 | 206 79 . 75 40 Remotely . | . . . . . Salvage Created 300 | . 150 . 106 44 Parts 27 | . 16 . 8 3 Haulers Intercepted . | . . . . . Recyclers Shooed . | . . . . . Parts Field Recycled . | . . . . . Retrieved Matter . | . . . . . Parts Self-Destructed . | . . . . . Prevented . | . . . . . Kills | -11 -10 -9 -9 -8 ------- Run | Yrd Mat Mat Min Mat Combat Hostiles Destroyed 14 | . 6 . 5 3 Melee 5 | . . . 2 3 Guns 8 | . 5 . 3 . AOE 1 | . 1 . . . Classes Destroyed 3 | . 2 . 1 . Recycler 1 | . 1 . . . Swarmer 12 | . 6 . 3 3 Grunt 2 | . . . 2 . Best Kill Streak 3 | . 3 . 3 3 Combat Bots Only 3 | . 3 . 3 3 Max Kills in Single Turn 1 | . 1 . 1 1 Gunslinging . | . . . . . Exploded 1 | . 1 . . . Melee 1 | . . . 1 1 Uniques/NPCs Destroyed . | . . . . . Combat | -11 -10 -9 -9 -8 -------- Run | Yrd Mat Mat Min Mat Hostile Shots Fired 107 | . 37 16 7 47 Missed 30 | . 11 7 2 10 Damage Taken 1318 | . 209 108 44 957 Core 635 | . 15 32 26 562 Absorbed by Shields . | . . . . . Redirected to Shielding 20 | . 20 . . . Core Remaining (%) 93 | 100 94 . 85 . Volleys Fired 32 | . 14 3 3 12 Largest 2 | . 2 1 1 2 Hottest 105 | . 80 40 65 105 Shots Fired 51 | . 28 3 3 17 Gun 51 | . 28 3 3 17 Cannon . | . . . . . Launcher . | . . . . . Special . | . . . . . Kinetic . | . . . . . Thermal 37 | . 14 3 3 17 Explosive . | . . . . . Electromagnetic 14 | . 14 . . . Robot Hit Streak 8 | . 3 1 4 8 Robot Miss Streak 4 | . 2 3 4 2 Penetration Max . | . . . . . Secondary Targets 1 | . 1 . . . Max Gunslinging Chain 1 | . 1 . . . Shots Hit Robots 39 | . 12 1 6 20 Core Hits 26 | . 8 . 8 10 Critical Kills . | . . . . . Critical Parts Destroyed . | . . . . . Critical Strikes . | . . . . . Melee Attacks 14 | . . . 4 10 Impact . | . . . . . Slashing 14 | . . . 4 10 Piercing . | . . . . . Sneak Attacks . | . . . . . Combat Hostiles . | . . . . . Follow-up Attacks . | . . . . . Damage Inflicted 737 | . 201 12 143 381 Guns 420 | . 150 12 44 214 Cannons . | . . . . . Explosions 51 | . 51 . . . Melee 266 | . . . 99 167 Ramming . | . . . . . Kinetic . | . . . . . Thermal 356 | . 86 12 44 214 Explosive . | . . . . . Electromagnetic 115 | . 115 . . . Impact . | . . . . . Slashing 266 | . . . 99 167 Piercing . | . . . . . Highest Corruption . | . . . . . Average Corruption . | . . . . . Corruption Purged . | . . . . . Corruption Blocked . | . . . . . Overload Shots . | . . . . . Overflow Damage . | . . . . . Projectiles . | . . . . . Explosions . | . . . . . Melee . | . . . . . Knockbacks . | . . . . . Impact . | . . . . . Kinetic . | . . . . . Secondary . | . . . . . Self-Inflicted Damage . | . . . . . Shots . | . . . . . Rammed . | . . . . . Targets Rammed . | . . . . . Kicked . | . . . . . Crushed . | . . . . . Highest Temperature 126 | . 126 5 66 84 Average Temperature 46 | . 56 5 34 28 Received Heat Transfer 141 | . . 81 6 54 Siege Activations . | . . . . . Robots Corrupted . | . . . . . Combat Hostiles . | . . . . . Parts Fried 1 | . 1 . . . Impact Corruptions . | . . . . . Robots Melted . | . . . . . Combat Hostiles . | . . . . . Parts Melted . | . . . . . Heat Transferred 694 | . 125 25 50 494 Parts Sabotaged . | . . . . . Parts Stolen . | . . . . . Parts Stripped . | . . . . . Power Chain Reactions 1 | . 1 . . . Alert | -11 -10 -9 -9 -8 ------- Run | Yrd Mat Mat Min Mat Peak Influence 182 | . 182 111 168 130 Initial 76 | . . 76 43 65 Average 106 | . 132 95 122 85 Maximum Alert Level . | . . . . . Low Security (%) 100 | 100 100 100 100 100 Level 1 . | . . . . . Level 2 . | . . . . . Level 3 . | . . . . . Level 4 . | . . . . . Level 5 . | . . . . . High Security . | . . . . . Max Security . | . . . . . Squads Dispatched 4 | . 1 1 . 2 Investigation 1 | . 1 . . . Extermination . | . . . . . Reinforcement 3 | . . 1 . 2 Assault . | . . . . . Garrison . | . . . . . Intercept . | . . . . . Searches Triggered . | . . . . . Construction Impeded . | . . . . . Haulers Reinforced . | . . . . . Active Scanning Responses . | . . . . . Cargo Convoy Interrupts . | . . . . . Stealth | -11 -10 -9 -9 -8 --------- Run | Yrd Mat Mat Min Mat Distress Signals 1 | . 1 . . . Communications Jammed . | . . . . . Distress Signals . | . . . . . Times Spotted 30 | . 9 7 7 7 Peak Tracking Total 6 | . 5 6 3 5 Tactical Retreats 6 | . . 1 3 2 Traps | -11 -10 -9 -9 -8 ------- Run | Yrd Mat Mat Min Mat Traps Triggered . | . . . . . Indirectly . | . . . . . Trap Hack Attempts . | . . . . . Triggered . | . . . . . Disarmed . | . . . . . Reprogrammed . | . . . . . Reused . | . . . . . Traps Extracted . | . . . . . Installed . | . . . . . Triggered . | . . . . . Machines | -11 -10 -9 -9 -8 ---------- Run | Yrd Mat Mat Min Mat Machines Disabled 2 | . 2 . . . Max in Single Turn 2 | . 2 . . . Machines Repaired . | . . . . . Machines Dismantled . | . . . . . Machines Sabotaged . | . . . . . Overloaded Fab Kills . | . . . . . Hacking | -11 -10 -9 -9 -8 --------- Run | Yrd Mat Mat Min Mat Machines Accessed 1 | . 1 . . . Terminals 1 | . 1 . . . Fabricators . | . . . . . Repair Stations . | . . . . . Recycling Units . | . . . . . Scanalyzers . | . . . . . Garrison Access . | . . . . . Total Hacks 2 | . 2 . . . Successful 1 | . 1 . . . Failed 1 | . 1 . . . Catastrophic 1 | . 1 . . . Database Lockouts . | . . . . . Manual . | . . . . . Terminals 2 | . 2 . . . Fabricators . | . . . . . Repair Stations . | . . . . . Recycling Units . | . . . . . Scanalyzers . | . . . . . Garrison Access . | . . . . . Terminal Hacks 1 | . 1 . . . Alert Level 1 | . 1 . . . Fabricator Hacks . | . . . . . Repair Station Hacks . | . . . . . Recycling Unit Hacks . | . . . . . Scanalyzer . | . . . . . Garrison Access Hacks . | . . . . . Unauthorized Hacks . | . . . . . Terminals . | . . . . . Fabricators . | . . . . . Repair Stations . | . . . . . Recycling Units . | . . . . . Scanalyzers . | . . . . . Garrison Access . | . . . . . Data Cores Recovered . | . . . . . Used . | . . . . . Hacking Detections 1 | . 1 . . . Full Trace Events 1 | . 1 . . . Feedback Events . | . . . . . Feedback Blocked . | . . . . . Robot Schematics Acquired . | . . . . . Robots Built . | . . . . . Authchips . | . . . . . Time . | . . . . . Total Robot Build Rating . | . . . . . Part Schematics Acquired . | . . . . . Parts Built . | . . . . . Authchips . | . . . . . Time . | . . . . . Total Part Build Rating . | . . . . . Parts Repaired . | . . . . . Time . | . . . . . Parts Recycled . | . . . . . Recycled Matter . | . . . . . Retrieved Matter . | . . . . . Retrieved Components . | . . . . . Parts Scanalyzed . | . . . . . Part Schematics Acquired . | . . . . . Parts Damaged . | . . . . . Bothacking | -11 -10 -9 -9 -8 ------------ Run | Yrd Mat Mat Min Mat Used RIF Installer . | . . . . . Robots Hacked . | . . . . . Non-combat . | . . . . . Combat . | . . . . . Robot Hacks Applied . | . . . . . Relay Couplers Released . | . . . . . Fabnet Peak Effective % . | . . . . . Robots Rewired . | . . . . . Allies Hacked . | . . . . . Hacks Repelled . | . . . . . Allies | -11 -10 -9 -9 -8 -------- Run | Yrd Mat Mat Min Mat Total Allies . | . . . . . Largest Group . | . . . . . Highest-Rated Group . | . . . . . Highest-Rated Ally . | . . . . . Total Orders . | . . . . . Ally Attacks . | . . . . . Total Damage . | . . . . . Kills . | . . . . . Allies Corrupted . | . . . . . Allies Melted . | . . . . . Intel | -11 -10 -9 -9 -8 ------- Run | Yrd Mat Mat Min Mat Robot Analysis Total . | . . . . . Derelict Logs Recovered 1 | . . . 1 . Drone Launches . | . . . . . Drone Recoveries . | . . . . . Exploration | -11 -10 -9 -9 -8 ------------- Run | Yrd Mat Mat Min Mat Turns Passed 740 | 38 163 80 282 177 Spaces Moved 628 | 36 118 123 236 115 Core 26 | 1 . . . 25 Treads . | . . . . . Legs 6 | . . . . 6 Wheels 90 | 35 55 . . . Hover . | . . . . . Flight 506 | . 63 123 236 84 Fastest Speed 34 | 50 37 37 34 37 Average Speed 88 | 79 91 55 103 92 Slowest Speed 250 | 80 205 120 200 250 Overloaded Moves . | . . . . . Propulsion Burnouts . | . . . . . Robots Hopped 1 | . . . 1 . Cave-ins Triggered . | . . . . . Exploration Rate (%) 21 | 4 29 16 49 11 Regions Visited 4 Branch Regions 1 Pre-discovered Areas . | . . . . . Known Exits Taken . | . . . . . Unknown Exits Taken 4 | 1 1 1 1 . Scrap Searched 2 | . . . 2 . Spaces Dug . | . . . . . Terrain Destroyed 2 | . 2 . . . Melee . | . . . . . Projectile . | . . . . . AOE 2 | . 2 . . . Terrain Rammed . | . . . . . Walls Destroyed . | . . . . . Machines Disabled . | . . . . . Actions | -11 -10 -9 -9 -8 --------- Run | Yrd Mat Mat Min Mat Total 736 | 42 144 133 265 152 Wait 23 | . 7 1 10 5 Move 622 | 35 117 122 233 115 Hop 1 | . . . 1 . Pick Up 5 | 2 . 2 1 . Fast Attach 16 | 5 2 1 4 4 Attach 6 | . 1 . 1 4 Detach 6 | . 2 1 2 1 Swap 3 | . 1 . 2 . Drop 8 | . . 3 4 1 Fire 32 | . 14 3 3 12 Melee 14 | . . . 4 10 Ram . | . . . . . Kick . | . . . . . Crush . | . . . . . Escape Stasis . | . . . . . Rewire . | . . . . . Trap . | . . . . . Miscellaneous . | . . . . . Route ------- -11/Scrapyard -10/Materials -9/Materials -9/Mines -8/Materials (discovered 1 exit: Fac) History --------- Turn | Location | Event 12 | -11/Scrapyard | Discovered new exit (range 16) 39 | -11/Scrapyard | Entered Materials 199 | -10/Materials | Discovered new exit (range 9) 202 | -10/Materials | Entered another Materials area 202 | -9/Materials | Evolved 2 slots: Propulsion x1, Utility x1 221 | -9/Materials | Discovered new exit (range 4) 282 | -9/Materials | Entered Mines 324 | -9/Mines | Build established: Mutant 382 | -9/Mines | A weapon hastily lodged in a ceiling crevice suddenly fell to the ground 396 | -9/Mines | Found DCF Scrap (10 items) 439 | -9/Mines | Discovered new exit (range 2) 564 | -9/Mines | Entered Materials 564 | -8/Materials | Evolved 2 slots: Propulsion x1, Utility x1 565 | -8/Materials | Identified exit to Factory 683 | -8/Materials | Core integrity fell below 50% 726 | -8/Materials | Core integrity fell below 20% 729 | -8/Materials | Lost 8 parts (2p3n1u2w) 741 | -8/Materials | Destroyed by H-61 Shepherd with Heavy Assault Cannon Last Messages --------------- Penetrated by Slug. K-01 Serf collects debris. Knocked back. Acquired 20 matter. K-01 Serf collects debris. Acquired Prototype Energy Gun. Identified Hvy. Particle Gun. K-01 Serf collects debris. Acquired Com. Battery. K-01 Serf collects debris. Acquired 10 matter. K-01 Serf collects debris. Penetrated by Slug. Knocked back. K-01 Serf collects debris. Destroyed Lgt. Nuclear Core. Slug penetrates Wall. U-05 Engineer builds a Wall. K-01 Serf collects debris. U-05 Engineer builds a Wall. Map ----- +----------------------------------------------------+ | ???????# #??????????????????????????????????? | | ???????#]! #??????????????????????????????????? | | ########]! #??????????????????????????????????? | | # #??????? ?????????????????????????? | | "" !!! #+##+#"#######+###????????????????????????? | | "" !! [# ^! ???????????????????????? | | "" !! %/ !!! ???????????????????????? | | # ! ] ???????????????????????? | | ### ######????????????????????????? | | #?# #?????????????????????????????? | | #?# #???????????##????????????????? | | ########?# ! ########??? #????????????????? | | ???####### #??? #????????????????? | | #### ! #??? +????????????????? | | #! ! #?? #????????????????? | | ! % #?? ?????????????????? | | ! k%###+####???????????????? | | ! #########+###### Hu# % ! ##??????????????? | | ! #???# ## [# "#??????????????? | | #! #???# ## %[;% ###?????????????? | | ##### ##???# """ ## %;= " #?????????????? | | ????# #????# """"" ## % ; /###?????????????? | | ????# #????# """"" ## # #???????????????? | | ????# #????# """"" ##% ########???????????????? | | ????# #????# """ ## #??????????????????????? | | ????# #????# ## @#??????????????????????? | | ???? ????############ #??????????????????????? | | ???? ???????????????# #??????????????????????? | | ???? ?????????????? +??????????????????????? | | ???? ?????????????### #??????????????????????? | | ???? ???????????????# #??????????????????????? | | ????#+#???????????????# #??????????????????????? | | ?????????????????????? #??????????????????????? | | ??????????????????????#;##???????????????????????? | | ??????????????????????##?????????????????????????? | | ?????????????????????????????????????????????????? | | ?????????????????????????????????????????????????? | | ?????????????????????????????????????????????????? | | ?????????????????????????????????????????????????? | | | | | | | | | | | | | | | | | | | | | | | +----------------------------------------------------+ Best States ------------- Heat Dissipation 31 Energy Generation 12 Energy Capacity 300 Matter Stores 300 Matter Capacity 300 Sight Range 16 Terrain Scan Density 10 ECM Strength 1 Weapon Shielding 33 Evasion (%) 63 Offensive Hacking 10 Item Schematics ----------------- None Robot Schematics ------------------ None Fabricated ------------ Nothing Alien Tech Used ----------------- None Achievements -------------- None Challenges ------------ None Game ------ Seed BurstBoltProtomatter Manual? 0 Play Time 00:13:17 Cumulative 11.1 hours Start 2024.09.29 @ 17:58:47 End 2024.09.29 @ 18:12:42 Sessions 1 Manual Loads 0 Difficulty Rogue Special Mode None Game No. 16 Rogue 16 Adventurer 0 Explorer 0 Win Type - Total 0 Types 0/0/0/0/0/0/0/0/0 Lore% 8 Gallery% 21 Achievement% 16 Wizard Run 0 Options --------- Layout 1 ASCII 0 Keyboard 1 Movement Numpad Keybinds 0 Fullscreen 1 Font 24/Smallcaps Map View 50x35 Zoom Use 0% Tactical HUD 0 Map Filters NONE Filters NONE Steam 1 RUN: 9c61984c-e1b3-4593-88a6-3289b7a8d423